bitfinex/quotes_SOLUSD_20250929
["timestamp","ask_amount","ask_price","bid_price","bid_amount"]
[1759116869411,134.32367911,210.06,210.0,16.66666666]
[1759116869412,37.31,210.07,210.01,0.69]
[1759116869610,26.0,210.04,210.01,0.69]
[1759116869916,37.31,210.07,210.01,0.69]
[1759116870114,26.0,210.04,210.02,0.69]
[1759116871220,0.69,210.06,210.03,16.66428604]
[1759116871396,36.62,210.07,210.03,17.35428604]
[1759116871718,37.31,210.07,210.03,17.35428604]
[1759116872220,0.69,210.06,210.03,16.66428604]
[1759116872405,0.69,210.06,210.02,0.69]
[1759116872715,36.62,210.07,210.02,0.69]
[1759116873018,37.31,210.07,210.03,0.69]
[1759116874206,26.0,210.06,210.03,0.69]
[1759116874906,26.0,210.06,210.04,4.7609979]
[1759116875597,0.69,210.05,210.04,4.7609979]
[1759116875795,0.69,210.05,210.03,11.90283856]
[1759116877920,0.69,210.05,210.01,0.14216157]
[1759116878112,0.69,210.04,210.01,0.14216157]
[1759116878619,26.0,210.06,210.01,0.83216157]
[1759116878817,0.69,210.05,210.01,0.83216157]
[1759116879516,26.0,210.06,210.02,0.69]
[1759116879720,26.69,210.06,210.02,0.69]
[1759116880024,0.69,210.05,210.02,16.66507951]
[1759116881117,0.69,210.05,210.02,17.35507951]
[1759116881316,0.69,210.05,210.02,16.66507951]
[1759116881519,0.69,210.04,210.02,16.66507951]
[1759116881892,26.69,210.06,210.02,16.66507951]
[1759116882119,0.69,210.05,210.02,16.66507951]
[1759116882824,0.69,210.05,210.02,17.35507951]
[1759116883920,1e-08,210.08,210.02,17.35507951]
[1759116884123,0.69,210.07,210.02,17.35507951]
[1759116884421,0.69,210.06,210.02,17.35507951]
[1759116884734,0.69,210.05,210.0,4.76172761]
[1759116884905,0.69,210.04,210.0,4.76172761]
[1759116885109,0.69,210.03,210.0,4.76172761]
[1759116885306,0.69,210.02,210.0,4.76172761]
[1759116885507,26.0,210.05,210.0,4.76172761]
[1759116885508,0.69,210.01,210.0,4.76172761]
[1759116886219,0.69,210.03,210.0,4.76172761]
[1759116886600,0.69,210.02,210.0,4.76172761]
[1759116886827,0.69,210.01,209.99,16.66717329]
[1759116887521,0.69,210.03,209.99,16.66717329]
[1759116887722,0.69,210.04,209.99,16.66717329]
[1759116887925,26.0,210.06,210.0,0.69]
[1759116888108,0.69,210.05,210.0,0.69]
[1759116888426,26.69,210.04,209.99,16.66717329]
[1759116888726,26.69,210.04,209.99,17.35717329]
[1759116888928,0.69,210.03,209.99,16.66717329]
[1759116889113,0.69,210.03,209.99,17.35717329]
[1759116891924,26.0,210.04,210.0,0.82216157]
[1759116892124,26.0,210.04,209.99,16.66717329]
[1759116892125,0.71,210.03,209.99,16.66717329]
[1759116892335,0.71,210.03,209.99,17.34717329]
[1759116893032,26.0,210.04,210.0,0.68]
[1759116893407,26.71,210.04,210.0,0.68]
[1759116894140,26.71,210.04,210.01,4.76167801]
[1759116894517,26.71,210.04,210.01,16.66587304]
[1759116895648,26.71,210.04,210.02,0.68]
[1759116895649,26.0,210.04,210.02,0.68]
[1759116896038,26.0,210.04,210.03,4.76122458]
[1759116897234,26.0,210.04,210.01,16.66587304]
[1759116897457,159.51,210.07,210.03,0.68]
[1759116897658,159.51,210.07,210.02,0.14216157]
[1759116897659,0.71,210.06,210.02,0.14216157]
[1759116897960,0.71,210.06,210.03,0.68]
[1759116898140,0.71,210.06,210.02,0.14216157]
[1759116898341,0.71,210.06,210.02,0.82216157]
[1759116898582,158.8,210.07,210.02,0.82216157]
[1759116898854,0.71,210.06,210.02,0.14216157]
[1759116899046,0.71,210.06,210.02,0.82216157]
[1759116899234,0.71,210.06,210.03,16.66428604]
[1759116899430,0.71,210.06,210.03,17.34428604]
[1759116900152,158.8,210.07,210.03,17.34428604]
[1759116900460,159.51,210.07,210.03,17.34428604]
[1759116900643,0.71,210.06,210.03,16.66428604]
[1759116901058,0.71,210.05,210.03,16.66428604]
[1759116901754,0.71,210.04,210.03,4.76122458]
[1759116902362,0.71,210.04,210.01,4.76167801]
[1759116902565,0.71,210.03,210.01,4.76167801]
[1759116902755,158.8,210.07,209.98,0.68]
[1759116902756,0.71,210.02,209.98,4.90451988]
[1759116902963,0.71,210.01,209.98,4.90451988]
[1759116903479,0.71,210.0,209.98,4.76235831]
[1759116903652,0.71,209.99,209.95,11.90716846]
[1759116903855,0.71,209.98,209.95,11.90716846]
[1759116904972,0.71,209.98,209.95,16.67020727]
[1759116906251,28.37850019,210.02,209.95,16.67020727]
[1759116906551,0.71,210.01,209.95,16.67020727]
[1759116906772,0.71,210.0,209.95,16.67020727]
[1759116907067,0.71,209.99,209.95,16.67020727]
[1759116907270,0.71,209.99,209.95,17.35020727]
[1759116907572,0.71,209.98,209.95,11.90716846]
[1759116909363,26.0,210.0,209.94,4.76326569]
[1759116909364,0.71,209.97,209.94,4.76326569]
[1759116909568,0.71,209.96,209.94,4.76326569]
[1759116909771,0.71,209.95,209.94,4.76326569]
[1759116909991,0.71,209.95,209.92,4.76351281]
[1759116912196,26.71,209.97,209.92,0.68]
[1759116912382,26.0,209.97,209.91,16.67381258]
[1759116912582,26.0,209.97,209.92,0.81216157]
[1759116912789,26.71,209.97,209.92,0.81216157]
[1759116913395,0.71,209.96,209.92,0.81216157]
[1759116913889,26.0,209.97,209.93,0.67]
[1759116914072,26.71,209.97,209.94,4.76326569]
[1759116914674,132.8,210.03,209.94,4.76326569]
[1759116914873,26.0,209.99,209.95,0.67]
[1759116915087,26.0,209.99,209.96,0.67]
[1759116915294,26.0,209.99,209.97,0.67]
[1759116915498,170.13,210.02,209.97,0.67]
[1759116915683,0.71,210.01,209.97,0.67]
[1759116915878,195.42,210.02,209.95,0.67]
[1759116916075,0.71,210.01,209.96,4.76281196]
[1759116916279,0.71,210.01,209.96,5.43281196]
[1759116916477,0.71,210.01,209.96,17.33984187]
[1759116916681,0.71,210.01,209.97,0.67]
[1759116917098,0.71,210.0,209.96,16.66984187]
[1759116917296,0.71,210.0,209.96,17.33984187]
[1759116918592,0.71,210.0,209.96,5.43281196]
[1759116921690,0.71,210.0,209.95,11.90752424]
[1759116921691,0.68,210.01,209.97,0.71]
[1759116921892,158.8,210.02,209.97,0.71]
[1759116922091,0.68,210.0,209.97,0.71]
[1759116923508,158.8,210.02,209.98,0.71]
[1759116923807,26.0,210.0,209.99,0.71]
[1759116924010,0.68,210.01,209.98,0.71]
[1759116924209,0.68,210.01,209.96,0.14216157]
[1759116924404,0.68,210.01,209.97,0.71]
[1759116925001,0.68,210.01,209.98,4.76235831]
[1759116926418,0.68,210.01,209.98,5.47235831]
[1759116926706,0.68,210.01,209.97,16.66876526]
[1759116926907,0.68,210.01,209.97,17.37876526]
[1759116927206,0.68,210.01,209.97,16.66876526]
[1759116927408,0.68,210.01,209.98,0.71]
[1759116927795,158.8,210.02,209.99,5.47213153]
[1759116927796,26.0,210.0,209.99,5.47213153]
[1759116927991,26.0,210.0,209.99,4.76213153]
[1759116928195,26.0,210.0,209.94,11.90787567]
[1759116928196,26.68,210.0,209.94,11.90787567]
[1759116928401,0.68,209.99,209.94,12.61787567]
[1759116928709,0.68,209.99,209.95,0.71]
[1759116929207,0.68,209.99,209.95,17.38063585]
[1759116929403,26.0,210.0,209.96,0.71]
[1759116929607,26.68,210.0,209.96,0.71]
[1759116929983,132.8,210.02,209.98,0.14216157]
[1759116930189,132.8,210.02,209.99,0.71]
[1759116930390,26.0,210.02,209.99,0.71]
[1759116931214,26.0,210.02,210.0,4.76190476]
[1759116931911,26.0,210.06,210.01,0.71]
[1759116932101,26.0,210.05,210.02,0.71]
[1759116932503,0.68,210.06,210.02,0.71]
[1759116932712,0.68,210.05,210.01,0.14216157]
[1759116933013,36.62000001,210.08,210.01,0.14216157]
[1759116933014,0.68,210.04,210.01,0.85216157]
[1759116933205,62.62000001,210.08,210.01,5.61362402]
[1759116933403,28.37850019,210.05,209.98,14.31946732]
[1759116933608,2.37850019,210.03,209.95,4.76281497]
[1759116933790,26.68,210.02,209.95,4.76281497]
[1759116933989,0.68,210.01,209.95,4.76281497]
[1759116934208,0.68,210.0,209.95,4.76281497]
[1759116934415,0.68,209.99,209.95,5.47281497]
[1759116935093,0.68,209.98,209.93,4.76331546]
[1759116935294,0.68,209.97,209.93,4.76331546]
[1759116935493,0.68,209.96,209.93,4.76331546]
[1759116935913,0.68,209.95,209.93,4.76331546]
[1759116936296,0.68,209.95,209.92,4.90588108]
[1759116936499,26.68,209.97,209.92,5.61588108]
[1759116936697,0.68,209.96,209.92,5.61588108]
[1759116936991,26.68,210.01,209.94,0.14216157]
[1759116937197,26.68,210.01,209.95,0.71]
[1759116938505,26.68,210.01,209.96,4.76281196]
[1759116938706,0.68,210.0,209.96,5.47281196]
[1759116940399,26.0,210.01,209.97,0.71]
[1759116940599,26.0,210.01,209.97,5.47252681]
[1759116941108,26.68,210.01,209.97,5.47252681]
[1759116944324,26.0,210.01,209.97,4.76252681]
[1759116944621,26.0,210.01,209.98,0.71]
[1759116944922,36.62000001,210.08,209.99,0.14216157]
[1759116945122,0.68,210.07,210.01,0.14216157]
[1759116945324,0.68,210.07,210.02,0.71]
[1759116946309,0.68,210.07,210.03,4.76122458]
[1759116946607,26.00000001,210.08,210.03,4.76122458]
[1759116946810,0.68,210.06,210.03,4.76122458]
[1759116947529,26.00000001,210.08,210.03,4.76122458]
[1759116947826,0.68,210.07,210.03,4.76122458]
[1759116948504,26.68000001,210.08,210.03,0.71]
[1759116948721,0.68,210.07,210.03,0.71]
[1759116949120,26.00000001,210.08,210.03,0.71]
[1759116949430,1e-08,210.08,210.04,0.85216157]
[1759116950113,1e-08,210.08,210.04,0.14216157]
[1759116950312,1e-08,210.08,210.05,0.71]
[1759116950633,1e-08,210.08,210.06,4.7605446]
[1759116951531,1e-08,210.08,210.05,4.76075052]
[1759116951718,1e-08,210.08,210.02,36.62]
[1759116951719,0.7,210.07,210.03,4.76121302]
[1759116952033,0.7,210.06,210.03,4.76121302]
[1759116953109,26.00000001,210.08,210.03,4.76121302]
[1759116953307,0.7,210.07,210.03,4.76121302]
[1759116955633,0.7,210.06,210.03,4.76121302]
[1759116957931,26.00000001,210.08,210.04,0.7]
[1759116958129,26.70000001,210.08,210.04,0.7]
[1759116959842,1e-08,210.08,210.07,0.14216157]
[1759116960019,1e-08,210.08,210.07,0.84216157]
[1759116960634,1e-08,210.08,210.07,0.14216157]
[1759116962144,1e-08,210.08,210.06,4.90249044]
[1759116963153,1e-08,210.08,210.06,5.60249044]
[1759116968322,1e-08,210.08,210.07,0.7]
[1759116968538,1e-08,210.08,210.07,0.84216157]
[1759116969834,1e-08,210.08,210.07,0.14216157]
[1759116970049,0.70000001,210.08,210.04,6.6691692]
[1759116970255,1e-08,210.08,210.05,36.74216157]
[1759116970457,1e-08,210.08,210.06,0.7]
[1759116970652,1e-08,210.08,210.05,37.44216157]
[1759116971160,1e-08,210.08,210.06,0.7]
[1759116972144,1e-08,210.08,210.06,5.46051823]
[1759116972348,1e-08,210.08,210.07,0.67]
[1759116973564,1e-08,210.08,210.07,5.43031798]
[1759116974449,1e-08,210.08,210.07,5.57247955]
[1759116981768,1e-08,210.08,210.07,42.17247955]
[1759116981972,1e-08,210.08,210.07,5.57247955]
[1759116982174,1e-08,210.08,210.07,42.17247955]
[1759116982567,1e-08,210.08,210.07,5.57247955]
[1759116982867,1e-08,210.08,210.07,42.17247955]
[1759116984247,1e-08,210.08,210.07,5.57247955]
[1759116984451,1e-08,210.08,210.07,42.17247955]
[1759116984966,1e-08,210.08,210.07,44.08101308]
[1759116985270,1e-08,210.08,210.07,7.48101308]
[1759116985471,1e-08,210.08,210.07,6.81101308]
[1759116985677,1e-08,210.08,210.07,43.41101308]
[1759116985976,1e-08,210.08,210.07,6.81101308]
[1759116986274,1e-08,210.08,210.07,43.41101308]
[1759116986976,1e-08,210.08,210.07,44.10101308]
[1759116988472,1e-08,210.08,210.07,7.50101308]
[1759116988691,1e-08,210.08,210.07,44.10101308]
[1759116990275,1e-08,210.08,210.07,57.69660709]
[1759116990662,1e-08,210.08,210.07,21.09660709]
[1759116990864,1e-08,210.08,210.07,57.69660709]
[1759116991164,1e-08,210.08,210.07,44.10101308]
[1759116992870,1e-08,210.08,210.07,42.19247955]
[1759116993369,1e-08,210.08,210.07,5.59247955]
[1759116993568,1e-08,210.08,210.07,41.50247955]
[1759116994052,1e-08,210.08,210.07,4.90247955]
[1759116994258,1e-08,210.08,210.07,41.50247955]
[1759117001580,1e-08,210.08,210.07,41.48247955]
[1759117002290,1e-08,210.08,210.07,5.59247955]
[1759117002486,1e-08,210.08,210.07,41.48247955]
[1759117003390,1e-08,210.08,210.07,42.17247955]
[1759117006086,1e-08,210.08,210.07,41.48247955]
[1759117008278,1e-08,210.08,210.07,42.17247955]
[1759117008680,1e-08,210.08,210.07,41.48247955]
[1759117010577,0.70000001,210.08,210.07,4.90247955]
[1759117010778,0.70000001,210.08,210.07,41.48247955]
[1759117011200,1e-08,210.08,210.07,41.48247955]
[1759117011616,0.66000001,210.08,210.07,4.90247955]
[1759117011794,0.66000001,210.08,210.07,4.76031798]
[1759117011980,0.66000001,210.08,210.07,4.90247955]
[1759117012180,0.66000001,210.08,210.07,41.48247955]
[1759117012473,0.66000001,210.08,210.07,41.34031798]
[1759117012702,0.66000001,210.08,210.07,41.48247955]
[1759117013289,0.66000001,210.08,210.07,4.90247955]
[1759117013489,0.66000001,210.08,210.07,41.48247955]
[1759117014891,1e-08,210.08,210.07,42.19247955]
[1759117016295,0.66000001,210.08,210.07,41.48247955]
[1759117017196,1e-08,210.08,210.07,4.90247955]
[1759117017403,0.66000001,210.08,210.07,41.48247955]
[1759117017604,1e-08,210.08,210.07,41.48247955]
[1759117025317,0.66000001,210.08,210.07,41.48247955]
[1759117027196,0.66000001,210.08,210.07,4.90247955]
[1759117027505,1e-08,210.08,210.07,41.48247955]
[1759117027713,1e-08,210.08,210.07,4.90247955]
[1759117027898,1e-08,210.08,210.07,41.48247955]
[1759117029211,1e-08,210.08,210.07,4.90247955]
[1759117029412,1e-08,210.08,210.07,41.48247955]
[1759117030619,1e-08,210.08,210.07,42.19247955]
[1759117031605,1e-08,210.08,210.07,5.61247955]
[1759117031795,1e-08,210.08,210.07,55.78807356]
[1759117031998,1e-08,210.08,210.07,57.69624291]
[1759117033330,1e-08,210.08,210.07,21.11624291]
[1759117033627,1e-08,210.08,210.07,57.69624291]
[1759117034222,1e-08,210.08,210.07,21.11624291]
[1759117034423,1e-08,210.08,210.07,57.69624291]
[1759117036341,1e-08,210.08,210.07,21.11624291]
[1759117036931,1e-08,210.08,210.07,57.69624291]
[1759117037321,1e-08,210.08,210.07,21.11624291]
[1759117037629,1e-08,210.08,210.07,57.69624291]
[1759117040334,1e-08,210.08,210.07,21.11624291]
[1759117040533,1e-08,210.08,210.07,57.69624291]
[1759117042722,1e-08,210.08,210.07,136.99624291]
[1759117043232,1e-08,210.12,210.1,26.0]
[1759117043441,1e-08,210.12,210.11,76.31775558]
[1759117044424,0.66000001,210.12,210.11,41.64565188]
[1759117044614,0.66000001,210.12,210.11,76.31775558]
[1759117045014,1e-08,210.12,210.11,76.31775558]
[1759117045424,1e-08,210.12,210.11,81.07716731]
[1759117049141,1e-08,210.12,210.11,44.49716731]
[1759117049323,1e-08,210.12,210.11,81.05716731]
[1759117051031,1e-08,210.12,210.11,44.49716731]
[1759117051340,1e-08,210.12,210.11,81.05716731]
[1759117051920,1e-08,210.12,210.11,44.49716731]
[1759117052127,1e-08,210.12,210.11,82.96506361]
[1759117053023,1e-08,210.12,210.11,46.40506361]
[1759117053550,1e-08,210.12,210.11,82.96506361]
[1759117054028,1e-08,210.12,210.11,46.40506361]
[1759117054230,1e-08,210.12,210.11,82.96506361]
[1759117054661,1e-08,210.12,210.11,46.40506361]
[1759117055027,1e-08,210.12,210.11,82.96506361]
[1759117055232,1e-08,210.12,210.11,83.67506361]
[1759117055937,1e-08,210.12,210.11,46.40506361]
[1759117056348,1e-08,210.12,210.11,82.96506361]
[1759117057352,1e-08,210.12,210.11,46.40506361]
[1759117057865,1e-08,210.12,210.11,82.96506361]
[1759117063464,1e-08,210.12,210.11,46.40506361]
[1759117063665,1e-08,210.12,210.11,82.96506361]
[1759117065670,1e-08,210.12,210.11,46.40506361]
[1759117065967,1e-08,210.12,210.11,82.96506361]
[1759117066670,1e-08,210.12,210.11,83.67506361]
[1759117068070,1e-08,210.12,210.11,47.11506361]
[1759117068374,1e-08,210.12,210.11,82.96506361]
[1759117068856,1e-08,210.12,210.11,83.67506361]
[1759117072470,0.2,210.15,210.12,0.14216157]
[1759117072663,0.2,210.15,210.14,0.14216157]
[1759117072852,0.2,210.15,210.14,36.70216157]
[1759117073252,0.2,210.15,210.14,38.60996687]
[1759117073462,0.2,210.15,210.14,43.36869914]
[1759117074572,0.2,210.15,210.14,57.8865517]
[1759117074778,0.2,210.15,210.14,58.6065517]
[1759117075267,0.2,210.15,210.14,58.5865517]
[1759117075470,0.2,210.15,210.14,22.0465517]
[1759117075671,0.2,210.15,210.14,58.5865517]
[1759117076280,0.2,210.15,210.14,57.8665517]
[1759117077279,0.2,210.15,210.14,21.3265517]
[1759117077660,0.2,210.15,210.14,57.8665517]
[1759117079760,0.2,210.15,210.14,21.3265517]
[1759117079964,0.89,210.15,210.14,21.3265517]
[1759117080464,0.89,210.15,210.14,57.8665517]
[1759117082989,0.89,210.15,210.14,21.3265517]
[1759117083174,0.89,210.15,210.14,57.8665517]
[1759117084266,0.89,210.15,210.14,21.3265517]
[1759117084467,0.89,210.15,210.14,57.8665517]
[1759117084788,0.89,210.15,210.14,21.3265517]
[1759117085088,0.89,210.15,210.14,57.8665517]
[1759117087980,0.2,210.15,210.14,57.8665517]
[1759117089502,0.2,210.15,210.14,58.5865517]
[1759117089864,0.2,210.15,210.14,57.8665517]
[1759117090483,0.2,210.15,210.14,58.5865517]
[1759117091995,0.2,210.15,210.14,22.0465517]
[1759117092294,0.2,210.15,210.14,58.5865517]
[1759117093286,1e-08,210.15,210.14,58.5865517]
[1759117093469,1e-08,210.15,210.14,35.64214571]
[1759117093891,1e-08,210.15,210.14,72.18214571]
[1759117099500,1e-08,210.15,210.14,35.64214571]
[1759117099694,1e-08,210.15,210.14,72.18214571]
[1759117100786,1e-08,210.15,210.14,35.64214571]
[1759117101102,0.2,210.16,210.14,35.64214571]
[1759117101103,1e-08,210.16,210.14,86.49214571]
[1759117101316,1e-08,210.16,210.15,0.83216157]
[1759117101489,1e-08,210.16,210.15,37.37216157]
[1759117101879,1e-08,210.16,210.15,39.27951202]
[1759117102086,1e-08,210.16,210.15,44.03801784]
[1759117102310,1e-08,210.16,210.15,57.63361185]
[1759117104712,1e-08,210.16,210.15,21.09361185]
[1759117104885,1e-08,210.16,210.15,46.26145028]
[1759117105084,1e-08,210.16,210.15,82.78145028]
[1759117105595,1e-08,210.16,210.15,83.61361185]
[1759117106487,1e-08,210.16,210.15,47.09361185]
[1759117106901,1e-08,210.16,210.15,83.61361185]
[1759117107296,1e-08,210.16,210.15,47.09361185]
[1759117107487,1e-08,210.16,210.15,83.61361185]
[1759117109405,1e-08,210.16,210.15,47.09361185]
[1759117109710,1e-08,210.16,210.15,83.61361185]
[1759117112719,1e-08,210.16,210.15,47.09361185]
[1759117112901,1e-08,210.16,210.15,46.40361185]
[1759117113210,1e-08,210.16,210.15,82.92361185]
[1759117113408,1e-08,210.16,210.15,83.61361185]
[1759117114617,1e-08,210.16,210.15,46.40361185]
[1759117114800,1e-08,210.16,210.15,32.80801784]
[1759117114801,0.67000001,210.16,210.15,32.80801784]
[1759117115202,0.67000001,210.16,210.15,69.32801784]
[1759117115606,0.67000001,210.16,210.15,32.80801784]
[1759117115925,0.67000001,210.16,210.15,1.90735045]
[1759117116111,2.18983512,210.16,210.0,11.9047619]
[1759117116322,1.51983511,210.14,210.01,37.21]
[1759117116521,0.67,210.13,210.07,14.31468448]
[1759117116821,0.67,210.12,210.08,36.52]
[1759117117023,0.67,210.11,210.09,36.52]
[1759117117319,0.67,210.1,210.09,36.66216157]
[1759117117621,0.67,210.1,210.09,50.97616304]
[1759117117819,0.67,210.1,210.09,50.83400147]
[1759117118015,1e-08,210.16,210.1,0.14216157]
[1759117118221,0.67,210.15,210.12,0.14216157]
[1759117118514,1e-08,210.16,210.14,0.14216157]
[1759117118819,1e-08,210.16,210.14,41.4208509]
[1759117119022,0.67,210.15,210.14,41.4208509]
[1759117119420,0.67,210.15,210.14,36.52]
[1759117120639,0.67,210.15,210.14,0.14216157]
[1759117120821,0.67,210.15,210.14,36.66216157]
[1759117122549,0.67,210.15,210.14,41.42089384]
[1759117123047,0.67,210.15,210.14,4.90089384]
[1759117123242,0.67,210.15,210.14,41.42089384]
[1759117123551,1e-08,210.16,210.14,41.42089384]
[1759117124232,0.67000001,210.16,210.15,14.31058745]
[1759117124548,0.67000001,210.16,210.15,19.06909327]
[1759117125050,1e-08,210.16,210.15,19.06909327]
[1759117125253,0.67000001,210.16,210.15,50.83058745]
[1759117125432,0.67000001,210.16,210.14,4.75871028]
[1759117125635,0.67,210.15,210.14,55.58998041]
[1759117125952,0.67,210.15,210.14,19.06998041]
[1759117126140,0.67,210.15,210.14,55.58998041]
[1759117126331,0.67,210.15,210.14,19.06998041]
[1759117126532,0.67,210.15,210.14,55.58998041]
[1759117127244,1e-08,210.16,210.14,55.58998041]
[1759117127676,1e-08,210.16,210.14,41.27871028]
[1759117127976,1e-08,210.16,210.15,15.14274902]
[1759117129066,1e-08,210.16,210.15,51.66274902]
[1759117129270,1e-08,210.16,210.15,56.42125484]
[1759117133870,1e-08,210.16,210.15,55.73125484]
[1759117134060,1e-08,210.16,210.15,19.21125484]
[1759117134363,1e-08,210.16,210.15,55.73125484]
[1759117135350,1e-08,210.16,210.15,19.21125484]
[1759117135663,1e-08,210.16,210.15,56.45125484]
[1759117136976,1e-08,210.16,210.15,55.73125484]
[1759117137178,1e-08,210.16,210.15,56.45125484]
[1759117139280,1e-08,210.16,210.15,70.04684885]
[1759117139964,1e-08,210.16,210.15,33.52684885]
[1759117140169,1e-08,210.16,210.15,70.04684885]
[1759117140571,1e-08,210.16,210.15,33.52684885]
[1759117140770,1e-08,210.16,210.15,70.04684885]
[1759117142472,1e-08,210.16,210.15,96.04684885]
[1759117144884,1e-08,210.16,210.15,59.52684885]
[1759117145183,1e-08,210.16,210.15,96.04684885]
[1759117145680,1e-08,210.16,210.15,59.52684885]
[1759117145877,1e-08,210.16,210.15,96.04684885]
[1759117146076,1e-08,210.16,210.15,59.52684885]
[1759117146394,1e-08,210.16,210.15,96.04684885]
[1759117146782,1e-08,210.16,210.15,58.80684885]
[1759117146977,1e-08,210.16,210.15,95.32684885]
[1759117147285,0.68000001,210.16,210.15,19.06909327]
[1759117147585,0.68000001,210.16,210.15,14.31058745]
[1759117148062,0.68000001,210.16,210.15,50.83058745]
[1759117148374,0.68000001,210.16,210.1,4.75963826]
[1759117148560,0.68,210.15,210.11,36.52]
[1759117148762,1e-08,210.16,210.14,4.75744244]
[1759117148968,1e-08,210.16,210.14,41.27744244]
[1759117149169,0.68,210.15,210.14,41.27744244]
[1759117150173,0.68,210.15,210.14,4.75744244]
[1759117150376,1e-08,210.16,210.15,4.90066739]
[1759117150569,1e-08,210.16,210.15,41.42066739]
[1759117150966,1e-08,210.16,210.15,43.79579556]
[1759117156201,1e-08,210.16,210.15,7.27579556]
[1759117156490,1e-08,210.16,210.15,43.79579556]
[1759117158680,1e-08,210.16,210.15,7.27579556]
[1759117158887,1e-08,210.16,210.15,44.45579556]
[1759117159085,1e-08,210.16,210.15,7.27579556]
[1759117159285,1e-08,210.16,210.15,43.79579556]
[1759117160807,1e-08,210.16,210.15,44.45579556]
[1759117161016,1e-08,210.16,210.15,7.27579556]
[1759117161190,1e-08,210.16,210.15,43.79579556]
[1759117162887,1e-08,210.16,210.15,2.51728974]
[1759117162888,0.66000001,210.16,210.15,2.51728974]
[1759117163090,0.66000001,210.16,210.15,39.03728974]
[1759117163715,1e-08,210.16,210.15,39.03728974]
[1759117164613,1e-08,210.16,210.15,43.79579556]
[1759117165800,1e-08,210.16,210.15,7.27579556]
[1759117165995,1e-08,210.16,210.15,43.79579556]
[1759117166200,1e-08,210.16,210.15,44.47579556]
[1759117166707,1e-08,210.16,210.15,7.95579556]
[1759117166916,1e-08,210.16,210.15,44.47579556]
[1759117167210,1e-08,210.16,210.15,7.95579556]
[1759117167414,1e-08,210.16,210.15,44.47579556]
[1759117167615,1e-08,210.16,210.15,7.95579556]
[1759117167816,1e-08,210.16,210.15,44.47579556]
[1759117172108,1e-08,210.16,210.15,7.95579556]
[1759117172306,1e-08,210.16,210.15,44.45579556]
[1759117173209,1e-08,210.16,210.15,42.08066739]
[1759117181614,1e-08,210.16,210.15,5.58066739]
[1759117181817,1e-08,210.16,210.15,42.08066739]
[1759117182340,1e-08,210.16,210.15,5.58066739]
[1759117182511,1e-08,210.16,210.15,42.08066739]
[1759117182927,1e-08,210.16,210.15,5.58066739]
[1759117183226,1e-08,210.16,210.15,42.08066739]
[1759117188033,0.66000001,210.16,210.15,36.5]
[1759117188635,0.66000001,210.16,210.15,36.64216157]
[1759117189203,0.66000001,210.16,210.15,41.40066739]
[1759117189611,0.66000001,210.16,210.15,4.90066739]
[1759117189814,0.66000001,210.16,210.15,41.40066739]
[1759117190126,0.66000001,210.16,210.15,4.90066739]
[1759117190427,0.66000001,210.16,210.15,41.40066739]
[1759117191634,1e-08,210.16,210.15,41.40066739]
[1759117192132,0.65000001,210.16,210.15,4.90066739]
[1759117192509,0.65000001,210.16,210.15,41.40066739]
[1759117192909,0.65000001,210.16,210.13,4.75888582]
[1759117193116,0.65,210.15,210.13,0.14216157]
[1759117193311,0.65,210.15,210.1,4.75963826]
[1759117193627,0.65,210.14,210.11,41.25937687]
[1759117193830,2.37512818,210.16,210.12,36.5]
[1759117194026,0.65,210.13,210.12,36.5]
[1759117199949,0.65,210.13,210.12,41.25918522]
[1759117200155,0.65,210.15,210.12,41.25918522]
[1759117200357,1e-08,210.16,210.12,41.25918522]
[1759117200531,0.65,210.14,210.12,36.5]
[1759117200861,0.65,210.13,210.11,0.14216157]